[Event "Live Chess"]
[Site "Chess.com"]
[Date "2023.05.21"]
[Round "-"]
[White "BostonStrangler"]
[Black "Singapourfeuj"]
[Result "1-0"]
[WhiteElo "2070"]
[BlackElo "2147"]
[TimeControl "300"]
[EndTime "20:22:29 PDT"]
[Termination "BostonStrangler won - game abandoned"]

1. Nf3 {[%clk 0:04:57.8]} 1... Nf6 {[%clk 0:04:57.9]} 2. g3 {[%clk 0:04:55.8]}
2... g6 {[%clk 0:04:57.3]} 3. Bg2 {[%clk 0:04:55.3]} 3... Bg7 {[%clk 0:04:56.7]}
4. O-O {[%clk 0:04:55]} 4... O-O {[%clk 0:04:56]} 5. d4 {[%clk 0:04:54.3]} 5...
d6 {[%clk 0:04:54.6]} 6. c4 {[%clk 0:04:52.8]} 6... a6 {[%clk 0:04:53.8]} 7. Nc3
{[%clk 0:04:52.1]} 7... Nbd7 {[%clk 0:04:52.9]} 8. e4 {[%clk 0:04:50.4]} 8... e5
{[%clk 0:04:51.8]} 9. dxe5 {[%clk 0:04:48.2]} 9... dxe5 {[%clk 0:04:48.8]} 10.
h3 {[%clk 0:04:46.6]} 10... Re8 {[%clk 0:04:42.8]} 11. Be3 {[%clk 0:04:44.2]}
11... Qe7 {[%clk 0:04:40.7]} 12. Nd5 {[%clk 0:04:40.3]} 12... Nxd5 {[%clk
0:04:39.7]} 13. cxd5 {[%clk 0:04:39.1]} 13... Nc5 {[%clk 0:04:36.2]} 14. Nd2
{[%clk 0:04:32.5]} 14... a5 {[%clk 0:04:31.3]} 15. Rc1 {[%clk 0:04:29.9]} 15...
b6 {[%clk 0:04:26]} 16. b3 {[%clk 0:04:13.9]} 16... Ba6 {[%clk 0:04:24.3]} 17.
Nc4 {[%clk 0:04:12.4]} 17... Bf8 {[%clk 0:04:15.6]} 18. Qd2 {[%clk 0:04:09.9]}
18... f6 {[%clk 0:04:10.7]} 19. Rfd1 {[%clk 0:04:08.3]} 19... Bxc4 {[%clk
0:04:00.9]} 20. Rxc4 {[%clk 0:04:03.1]} 20... Qd7 {[%clk 0:03:33.4]} 21. f3
{[%clk 0:03:34.9]} 21... Bd6 {[%clk 0:03:31.9]} 22. Kh2 {[%clk 0:03:23.6]} 22...
f5 {[%clk 0:03:30.8]} 23. h4 {[%clk 0:03:19.7]} 23... Qe7 {[%clk 0:03:27.7]} 24.
Bg5 {[%clk 0:03:16.2]} 1-0

[Event "Live Chess"]
[Site "Chess.com"]
[Date "2023.05.21"]
[Round "-"]
[White "ClassyChameleon"]
[Black "Long1968"]
[Result "1-0"]
[WhiteElo "1083"]
[BlackElo "1034"]
[TimeControl "300"]
[EndTime "20:22:36 PDT"]
[Termination "ClassyChameleon won on time"]

1. e4 {[%clk 0:04:58.5]} 1... e6 {[%clk 0:04:57.7]} 2. d4 {[%clk 0:04:56.1]}
2... d5 {[%clk 0:04:56.2]} 3. e5 {[%clk 0:04:55.7]} 3... c5 {[%clk 0:04:53.8]}
4. c3 {[%clk 0:04:55.2]} 4... Nc6 {[%clk 0:04:50]} 5. Nf3 {[%clk 0:04:54.7]}
5... Qb6 {[%clk 0:04:43.2]} 6. Be3 {[%clk 0:04:53.9]} 6... cxd4 {[%clk
0:04:37.4]} 7. Nxd4 {[%clk 0:04:47.5]} 7... Nxd4 {[%clk 0:04:32.8]} 8. cxd4
{[%clk 0:04:45.5]} 8... Bb4+ {[%clk 0:04:27.2]} 9. Nc3 {[%clk 0:04:43.7]} 9...
Ne7 {[%clk 0:04:21]} 10. Be2 {[%clk 0:04:41.1]} 10... Ng6 {[%clk 0:04:12.8]} 11.
O-O {[%clk 0:04:39.9]} 11... Bd7 {[%clk 0:04:00.7]} 12. a3 {[%clk 0:04:26.3]}
12... Be7 {[%clk 0:03:44.4]} 13. b4 {[%clk 0:04:08.7]} 13... f6 {[%clk
0:03:39.2]} 14. Rb1 {[%clk 0:04:04.1]} 14... O-O {[%clk 0:03:28.9]} 15. a4
{[%clk 0:03:57]} 15... Bxb4 {[%clk 0:02:51.9]} 16. Nb5 {[%clk 0:03:50.2]} 16...
Qa5 {[%clk 0:01:51.6]} 17. Nd6 {[%clk 0:03:12.5]} 17... Bxd6 {[%clk 0:01:14.8]}
18. exd6 {[%clk 0:03:10.3]} 18... Bxa4 {[%clk 0:01:00.3]} 19. Qc1 {[%clk
0:03:02.1]} 19... Rac8 {[%clk 0:00:55.3]} 20. Qa3 {[%clk 0:02:59.8]} 20... Rc3
{[%clk 0:00:22.1]} 21. Qb4 {[%clk 0:02:28.1]} 21... Qxb4 {[%clk 0:00:16.7]} 22.
Rxb4 {[%clk 0:02:26.8]} 22... Rb3 {[%clk 0:00:08.4]} 23. Rxa4 {[%clk 0:02:24.5]}
23... Rd8 {[%clk 0:00:01.8]} 24. Bd1 {[%clk 0:02:18.9]} 1-0

[Event "Live Chess"]
[Site "Chess.com"]
[Date "2023.05.21"]
[Round "-"]
[White "Tushinskiy"]
[Black "LiamBellwood"]
[Result "1-0"]
[WhiteElo "2214"]
[BlackElo "2007"]
[TimeControl "300"]
[EndTime "20:24:34 PDT"]
[Termination "Tushinskiy won by resignation"]

1. d4 {[%clk 0:04:57.6]} 1... e6 {[%clk 0:04:59.9]} 2. c3 {[%clk 0:04:57.5]}
2... f5 {[%clk 0:04:59.4]} 3. Nf3 {[%clk 0:04:57.3]} 3... Nf6 {[%clk 0:04:59.1]}
4. Bf4 {[%clk 0:04:56.8]} 4... b6 {[%clk 0:04:56.2]} 5. Bg3 {[%clk 0:04:56.7]}
5... Bb7 {[%clk 0:04:55.9]} 6. Nbd2 {[%clk 0:04:55.6]} 6... Bd6 {[%clk
0:04:55.5]} 7. e3 {[%clk 0:04:55.2]} 7... O-O {[%clk 0:04:54.3]} 8. Bd3 {[%clk
0:04:53.9]} 8... Ne4 {[%clk 0:04:50.7]} 9. Qe2 {[%clk 0:04:52.7]} 9... Bxg3
{[%clk 0:04:45.8]} 10. hxg3 {[%clk 0:04:51.5]} 10... d6 {[%clk 0:04:42.1]} 11.
g4 {[%clk 0:04:50.1]} 11... Nxd2 {[%clk 0:04:36.5]} 12. Qxd2 {[%clk 0:04:48.3]}
12... g6 {[%clk 0:04:21.6]} 13. gxf5 {[%clk 0:04:45.8]} 13... exf5 {[%clk
0:04:20.4]} 14. O-O-O {[%clk 0:04:45.1]} 14... Nd7 {[%clk 0:04:14.8]} 15. Rh6
{[%clk 0:04:43.7]} 15... Nf6 {[%clk 0:04:10.4]} 16. Rdh1 {[%clk 0:04:42.8]}
16... Rf7 {[%clk 0:04:07.2]} 17. Bc4 {[%clk 0:04:40.6]} 17... d5 {[%clk
0:04:06.4]} 18. Bd3 {[%clk 0:04:39.1]} 18... Ng4 {[%clk 0:03:49.8]} 19. R6h4
{[%clk 0:04:35.8]} 19... Nf6 {[%clk 0:03:35.3]} 20. Ne5 {[%clk 0:04:33.8]} 20...
Rg7 {[%clk 0:03:29.9]} 21. f4 {[%clk 0:04:31.2]} 21... c5 {[%clk 0:03:15.6]} 22.
Qf2 {[%clk 0:04:12.4]} 22... c4 {[%clk 0:03:07]} 23. Bc2 {[%clk 0:04:10.6]}
23... b5 {[%clk 0:02:52.4]} 24. g4 {[%clk 0:04:09.2]} 24... Bc8 {[%clk
0:02:36.5]} 25. gxf5 {[%clk 0:04:05.2]} 25... gxf5 {[%clk 0:02:35.7]} 26. Rh6
{[%clk 0:03:56.7]} 26... Ne4 {[%clk 0:02:01.2]} 27. Bxe4 {[%clk 0:03:55]} 27...
dxe4 {[%clk 0:02:00.7]} 28. Qh2 {[%clk 0:03:50.4]} 28... Qe7 {[%clk 0:01:53]}
29. Rh3 {[%clk 0:03:43.8]} 29... a5 {[%clk 0:01:43.4]} 30. Rg3 {[%clk
0:03:42.3]} 30... Ra7 {[%clk 0:01:42.2]} 31. Rxg7+ {[%clk 0:03:39]} 31... Kxg7
{[%clk 0:01:34.3]} 32. Rg1+ {[%clk 0:03:38.9]} 32... Kh8 {[%clk 0:01:31.5]} 33.
Ng6+ {[%clk 0:03:35.5]} 1-0

[Event "Live Chess"]
[Site "Chess.com"]
[Date "2023.05.21"]
[Round "-"]
[White "Pablo_dmp"]
[Black "ramses-IIG"]
[Result "1-0"]
[WhiteElo "1859"]
[BlackElo "870"]
[TimeControl "300"]
[EndTime "20:25:05 PDT"]
[Termination "Pablo_dmp won by checkmate"]

1. e4 {[%clk 0:04:58.2]} 1... d5 {[%clk 0:04:57.1]} 2. exd5 {[%clk 0:04:56.9]}
2... Qxd5 {[%clk 0:04:57]} 3. Nc3 {[%clk 0:04:56.1]} 3... Qe6+ {[%clk
0:04:56.9]} 4. Be2 {[%clk 0:04:55]} 4... Qg6 {[%clk 0:04:56.8]} 5. Bf3 {[%clk
0:04:45.7]} 5... c6 {[%clk 0:04:55.4]} 6. d4 {[%clk 0:04:44.2]} 6... e6 {[%clk
0:04:53.9]} 7. Nh3 {[%clk 0:04:41.8]} 7... f6 {[%clk 0:04:47.6]} 8. Nf4 {[%clk
0:04:40.7]} 8... Qf7 {[%clk 0:04:44.2]} 9. O-O {[%clk 0:04:34.8]} 9... Bb4
{[%clk 0:04:42.5]} 10. Re1 {[%clk 0:04:30.8]} 10... Ne7 {[%clk 0:04:38.2]} 11.
Bd2 {[%clk 0:04:21.1]} 11... O-O {[%clk 0:04:35.9]} 12. a3 {[%clk 0:04:13.7]}
12... Ba5 {[%clk 0:04:33.2]} 13. Ne4 {[%clk 0:04:07.8]} 13... Bb6 {[%clk
0:04:29.5]} 14. Bb4 {[%clk 0:03:59.3]} 14... Rd8 {[%clk 0:04:21.5]} 15. Ne2
{[%clk 0:03:29.6]} 15... Nf5 {[%clk 0:04:17]} 16. Bc5 {[%clk 0:03:16.6]} 16...
Bxc5 {[%clk 0:04:12.6]} 17. Nxc5 {[%clk 0:03:16.5]} 17... Nh4 {[%clk 0:04:07.3]}
18. Be4 {[%clk 0:03:11]} 18... f5 {[%clk 0:03:57.3]} 19. Bd3 {[%clk 0:03:06.1]}
19... Qg6 {[%clk 0:03:55.3]} 20. Ng3 {[%clk 0:03:00.2]} 20... Qg5 {[%clk
0:03:49.6]} 21. Nxe6 {[%clk 0:02:53.8]} 21... Bxe6 {[%clk 0:03:47]} 22. Rxe6
{[%clk 0:02:53.7]} 22... f4 {[%clk 0:03:43.7]} 23. Bc4 {[%clk 0:02:50.6]} 23...
Kf8 {[%clk 0:03:35.5]} 24. Re5 {[%clk 0:02:45.1]} 24... Qh6 {[%clk 0:03:11.5]}
25. Nf5 {[%clk 0:02:38.4]} 25... Nxf5 {[%clk 0:02:59.5]} 26. Rxf5+ {[%clk
0:02:38.3]} 26... Ke8 {[%clk 0:02:53.9]} 27. Qe2+ {[%clk 0:02:34.4]} 27... Kd7
{[%clk 0:02:52.5]} 28. Rf7+ {[%clk 0:02:26.7]} 28... Kd6 {[%clk 0:02:51.5]} 29.
Qe5# {[%clk 0:02:25]} 1-0

[Event "Live Chess"]
[Site "Chess.com"]
[Date "2023.05.21"]
[Round "-"]
[White "Conradical12"]
[Black "garyjc"]
[Result "1-0"]
[WhiteElo "1633"]
[BlackElo "1049"]
[TimeControl "300"]
[EndTime "20:25:08 PDT"]
[Termination "Conradical12 won by checkmate"]

1. e4 {[%clk 0:04:58.7]} 1... c5 {[%clk 0:04:57.5]} 2. Bc4 {[%clk 0:04:58]} 2...
d6 {[%clk 0:04:55.6]} 3. Nf3 {[%clk 0:04:57.3]} 3... Nc6 {[%clk 0:04:53.6]} 4.
d3 {[%clk 0:04:54.4]} 4... g6 {[%clk 0:04:44]} 5. Be3 {[%clk 0:04:51.1]} 5...
Bg7 {[%clk 0:04:41.5]} 6. c3 {[%clk 0:04:48.9]} 6... Nf6 {[%clk 0:04:35.6]} 7.
Qd2 {[%clk 0:04:47.7]} 7... Ng4 {[%clk 0:04:34.1]} 8. O-O {[%clk 0:04:43.5]}
8... Nxe3 {[%clk 0:04:32.7]} 9. fxe3 {[%clk 0:04:43.1]} 9... O-O {[%clk
0:04:31.5]} 10. Qf2 {[%clk 0:04:40.5]} 10... Na5 {[%clk 0:04:22.8]} 11. Ng5
{[%clk 0:04:35.2]} 11... e6 {[%clk 0:04:10.9]} 12. Nxf7 {[%clk 0:04:28.8]} 12...
Qe7 {[%clk 0:04:00.9]} 13. b4 {[%clk 0:04:16]} 13... Rxf7 {[%clk 0:03:55.7]} 14.
Qxf7+ {[%clk 0:04:12.8]} 14... Qxf7 {[%clk 0:03:54.4]} 15. Rxf7 {[%clk
0:04:11.6]} 15... Kxf7 {[%clk 0:03:53.2]} 16. bxa5 {[%clk 0:04:10.3]} 16... Bxc3
{[%clk 0:03:42.3]} 17. Nxc3 {[%clk 0:04:08.5]} 17... Bd7 {[%clk 0:03:33.6]} 18.
Rf1+ {[%clk 0:04:04.3]} 18... Kg7 {[%clk 0:03:32.2]} 19. Bb5 {[%clk 0:03:55.3]}
19... Bc8 {[%clk 0:03:26.7]} 20. Be8 {[%clk 0:03:48.2]} 20... b6 {[%clk
0:03:12.1]} 21. Rf7+ {[%clk 0:03:44.2]} 21... Kh6 {[%clk 0:03:07.5]} 22. axb6
{[%clk 0:03:40.1]} 22... axb6 {[%clk 0:02:57.7]} 23. e5 {[%clk 0:03:21.9]} 23...
Ra3 {[%clk 0:02:27.9]} 24. Ne4 {[%clk 0:02:57.6]} 24... Ba6 {[%clk 0:02:18.9]}
25. Nf6 {[%clk 0:02:55.2]} 25... Rxd3 {[%clk 0:02:06]} 26. h4 {[%clk 0:02:54.2]}
26... Rd1+ {[%clk 0:01:59.2]} 27. Kh2 {[%clk 0:02:52.3]} 27... Rd2 {[%clk
0:01:52.5]} 28. Rxh7# {[%clk 0:02:50.5]} 1-0

[Event "Live Chess"]
[Site "Chess.com"]
[Date "2023.05.21"]
[Round "-"]
[White "ViktorTheCoolBoy"]
[Black "alanmike75"]
[Result "1-0"]
[WhiteElo "2501"]
[BlackElo "1602"]
[TimeControl "300"]
[EndTime "20:26:06 PDT"]
[Termination "ViktorTheCoolBoy won by resignation"]

1. d4 {[%clk 0:04:57.2]} 1... d5 {[%clk 0:04:58.3]} 2. c4 {[%clk 0:04:56.3]}
2... c6 {[%clk 0:04:57.3]} 3. Nc3 {[%clk 0:04:55.5]} 3... Nf6 {[%clk 0:04:56.1]}
4. Nf3 {[%clk 0:04:54.8]} 4... e6 {[%clk 0:04:54]} 5. e3 {[%clk 0:04:53.4]} 5...
Be7 {[%clk 0:04:52.4]} 6. Qc2 {[%clk 0:04:52.4]} 6... O-O {[%clk 0:04:50.7]} 7.
b3 {[%clk 0:04:51.6]} 7... Nbd7 {[%clk 0:04:47]} 8. Bb2 {[%clk 0:04:51]} 8... b6
{[%clk 0:04:45]} 9. Bd3 {[%clk 0:04:50.2]} 9... Bb7 {[%clk 0:04:42.6]} 10. O-O
{[%clk 0:04:48.4]} 10... Rc8 {[%clk 0:04:39.8]} 11. Rfd1 {[%clk 0:04:46.9]}
11... Re8 {[%clk 0:04:30]} 12. e4 {[%clk 0:04:44.5]} 12... dxe4 {[%clk
0:04:27.9]} 13. Nxe4 {[%clk 0:04:44.4]} 13... Nxe4 {[%clk 0:04:26]} 14. Bxe4
{[%clk 0:04:44.3]} 14... Nf8 {[%clk 0:04:23.9]} 15. Qe2 {[%clk 0:04:41.6]} 15...
Qc7 {[%clk 0:04:16.2]} 16. Rac1 {[%clk 0:04:36.7]} 16... Bf6 {[%clk 0:04:13.5]}
17. g4 {[%clk 0:04:32]} 17... Qf4 {[%clk 0:04:03.7]} 18. Ne5 {[%clk 0:04:27.4]}
18... Bxe5 {[%clk 0:03:42.3]} 19. dxe5 {[%clk 0:04:25.8]} 19... Red8 {[%clk
0:03:36.4]} 20. Qf3 {[%clk 0:04:24.3]} 20... Qxf3 {[%clk 0:03:31.9]} 21. Bxf3
{[%clk 0:04:24.2]} 21... Ng6 {[%clk 0:03:23.4]} 22. Be4 {[%clk 0:04:22]} 22...
Ne7 {[%clk 0:03:20.9]} 23. Ba3 {[%clk 0:04:19.7]} 23... Kf8 {[%clk 0:03:18.3]}
24. Bd6 {[%clk 0:04:16.9]} 24... Ke8 {[%clk 0:03:15.9]} 25. b4 {[%clk
0:04:15.7]} 25... Rd7 {[%clk 0:03:11.1]} 26. f4 {[%clk 0:04:07.5]} 26... Rcd8
{[%clk 0:03:06.3]} 27. b5 {[%clk 0:04:01.9]} 27... c5 {[%clk 0:03:03.9]} 28. Re1
{[%clk 0:03:55.8]} 28... Bxe4 {[%clk 0:03:01.4]} 29. Rxe4 {[%clk 0:03:55.7]}
29... Nc8 {[%clk 0:02:51.4]} 30. Re3 {[%clk 0:03:49.6]} 30... Nxd6 {[%clk
0:02:49.7]} 31. exd6 {[%clk 0:03:48.7]} 31... Rxd6 {[%clk 0:02:48.7]} 32. Ra3
{[%clk 0:03:48.2]} 32... R8d7 {[%clk 0:02:46.8]} 33. Rcc3 {[%clk 0:03:44.1]}
33... Ke7 {[%clk 0:02:43.3]} 34. Kg2 {[%clk 0:03:42.7]} 34... Rd2+ {[%clk
0:02:40.1]} 35. Kg3 {[%clk 0:03:41.8]} 35... f6 {[%clk 0:02:34.8]} 36. Ra4
{[%clk 0:03:39]} 36... R2d3+ {[%clk 0:02:25.9]} 37. Rxd3 {[%clk 0:03:38.1]}
37... Rxd3+ {[%clk 0:02:24.6]} 38. Kf2 {[%clk 0:03:35.8]} 38... Rd7 {[%clk
0:02:23.2]} 39. Ke3 {[%clk 0:03:35.1]} 39... e5 {[%clk 0:02:20.1]} 40. fxe5
{[%clk 0:03:33.3]} 40... fxe5 {[%clk 0:02:19]} 41. Ra3 {[%clk 0:03:32.8]} 41...
Ke6 {[%clk 0:02:17.1]} 42. Ra6 {[%clk 0:03:31.8]} 42... g5 {[%clk 0:02:14.4]}
43. a4 {[%clk 0:03:30.2]} 43... Ke7 {[%clk 0:02:01.6]} 44. a5 {[%clk 0:03:28.2]}
44... Rb7 {[%clk 0:01:51.9]} 45. axb6 {[%clk 0:03:27.2]} 45... axb6 {[%clk
0:01:48.7]} 46. Ke4 {[%clk 0:03:26.5]} 46... Ke6 {[%clk 0:01:47.7]} 47. Ra8
{[%clk 0:03:25.7]} 47... Rd7 {[%clk 0:01:42.4]} 48. Re8+ {[%clk 0:03:23.9]}
48... Kf6 {[%clk 0:01:35.4]} 49. Rf8+ {[%clk 0:03:22.7]} 49... Ke7 {[%clk
0:01:31.3]} 50. Rf5 {[%clk 0:03:16.3]} 50... Rd4+ {[%clk 0:01:26.5]} 51. Kxe5
{[%clk 0:03:15.6]} 51... Rxg4 {[%clk 0:01:25]} 52. Kd5 {[%clk 0:03:13.8]} 52...
Rd4+ {[%clk 0:01:21.7]} 53. Kc6 {[%clk 0:03:12.9]} 53... Rxc4 {[%clk 0:01:20.3]}
54. Rxg5 {[%clk 0:03:10.3]} 54... Kf6 {[%clk 0:01:07.3]} 55. Rh5 {[%clk
0:03:08.3]} 55... Kg6 {[%clk 0:01:06]} 56. Rh3 {[%clk 0:03:07.3]} 56... Rb4
{[%clk 0:01:02.9]} 57. Kxb6 {[%clk 0:03:05.6]} 57... c4 {[%clk 0:01:01.9]} 58.
Kc5 {[%clk 0:03:04.9]} 58... Rb3 {[%clk 0:00:57.9]} 59. Rh4 {[%clk 0:03:03.6]}
59... c3 {[%clk 0:00:55.7]} 60. Rc4 {[%clk 0:03:02.4]} 60... h5 {[%clk 0:00:48]}
61. b6 {[%clk 0:02:55.7]} 61... Kf6 {[%clk 0:00:40]} 62. Kc6 {[%clk 0:02:54.5]}
62... Ke6 {[%clk 0:00:38.7]} 63. b7 {[%clk 0:02:53.5]} 63... Ke5 {[%clk
0:00:26.7]} 64. h4 {[%clk 0:02:40.8]} 1-0

[Event "Live Chess"]
[Site "Chess.com"]
[Date "2023.05.21"]
[Round "-"]
[White "YuriyKrykun"]
[Black "tpm07"]
[Result "0-1"]
[WhiteElo "2265"]
[BlackElo "1963"]
[TimeControl "300"]
[EndTime "20:26:23 PDT"]
[Termination "tpm07 won by checkmate"]

1. Nf3 {[%clk 0:04:55.9]} 1... d5 {[%clk 0:04:57.5]} 2. g3 {[%clk 0:04:55.8]}
2... Bg4 {[%clk 0:04:54]} 3. Bg2 {[%clk 0:04:55.7]} 3... e6 {[%clk 0:04:51.2]}
4. O-O {[%clk 0:04:54.4]} 4... Nf6 {[%clk 0:04:49.8]} 5. c4 {[%clk 0:04:53.5]}
5... c6 {[%clk 0:04:48.2]} 6. d3 {[%clk 0:04:49.9]} 6... Nbd7 {[%clk 0:04:46.8]}
7. Nc3 {[%clk 0:04:45.9]} 7... Be7 {[%clk 0:04:42.2]} 8. Be3 {[%clk 0:04:36]}
8... O-O {[%clk 0:04:36.1]} 9. Qb3 {[%clk 0:04:31.3]} 9... b6 {[%clk 0:04:27.6]}
10. Rfc1 {[%clk 0:04:27]} 10... Rc8 {[%clk 0:04:18.3]} 11. Qd1 {[%clk
0:04:12.8]} 11... c5 {[%clk 0:04:16]} 12. cxd5 {[%clk 0:04:00.5]} 12... exd5
{[%clk 0:04:13.3]} 13. Bg5 {[%clk 0:03:53.2]} 13... d4 {[%clk 0:04:05]} 14. Nb1
{[%clk 0:03:40.7]} 14... h6 {[%clk 0:04:00.6]} 15. Bxf6 {[%clk 0:03:37.6]} 15...
Nxf6 {[%clk 0:04:00]} 16. Nbd2 {[%clk 0:03:37]} 16... Re8 {[%clk 0:03:49.7]} 17.
a4 {[%clk 0:03:34.4]} 17... Bf8 {[%clk 0:03:45.8]} 18. h3 {[%clk 0:03:28]} 18...
Bh5 {[%clk 0:03:41.3]} 19. g4 {[%clk 0:03:24.2]} 19... Bg6 {[%clk 0:03:40.1]}
20. Nc4 {[%clk 0:03:23.3]} 20... Nd5 {[%clk 0:03:32.6]} 21. Qd2 {[%clk
0:03:13.7]} 21... Qf6 {[%clk 0:03:07.6]} 22. Nfe5 {[%clk 0:02:42]} 22... Rxe5
{[%clk 0:02:49.8]} 23. Nxe5 {[%clk 0:02:34.2]} 23... Qxe5 {[%clk 0:02:48.7]} 24.
Re1 {[%clk 0:02:18.9]} 24... Bd6 {[%clk 0:02:35.3]} 25. Kf1 {[%clk 0:02:13.2]}
25... Nf4 {[%clk 0:02:25.3]} 26. e4 {[%clk 0:01:50.6]} 26... Nxg2 {[%clk
0:01:50.2]} 27. Kxg2 {[%clk 0:01:50.5]} 27... Qh2+ {[%clk 0:01:49.5]} 28. Kf1
{[%clk 0:01:48.9]} 28... Qxh3+ {[%clk 0:01:44.1]} 29. Ke2 {[%clk 0:01:48.3]}
29... Qxg4+ {[%clk 0:01:42.1]} 30. f3 {[%clk 0:01:47.8]} 30... Qg2+ {[%clk
0:01:34.4]} 31. Kd1 {[%clk 0:01:46.8]} 31... Qxf3+ {[%clk 0:01:32.9]} 32. Kc2
{[%clk 0:01:42.8]} 32... c4 {[%clk 0:01:19]} 33. Kb1 {[%clk 0:01:39.5]} 33...
cxd3 {[%clk 0:01:05.2]} 34. Ka2 {[%clk 0:01:34.9]} 34... Bxe4 {[%clk 0:00:57.8]}
35. Rf1 {[%clk 0:01:33.5]} 35... Bd5+ {[%clk 0:00:53]} 36. b3 {[%clk 0:01:31]}
36... Qxf1 {[%clk 0:00:44.5]} 37. Rxf1 {[%clk 0:01:28.9]} 37... Rc2+ {[%clk
0:00:43.7]} 38. Qxc2 {[%clk 0:01:27.8]} 38... dxc2 {[%clk 0:00:42.9]} 39. Kb2
{[%clk 0:01:27.1]} 39... Be4 {[%clk 0:00:34.1]} 40. Re1 {[%clk 0:01:24.7]} 40...
f5 {[%clk 0:00:31.8]} 41. Rg1 {[%clk 0:01:14.1]} 41... Bb4 {[%clk 0:00:30.3]}
42. Kc1 {[%clk 0:01:10.2]} 42... d3 {[%clk 0:00:29.3]} 43. Rd1 {[%clk
0:01:04.9]} 43... cxd1=Q+ {[%clk 0:00:27.5]} 44. Kxd1 {[%clk 0:01:04.8]} 44...
d2 {[%clk 0:00:25.6]} 45. Ke2 {[%clk 0:01:04.7]} 45... Bf3+ {[%clk 0:00:24.8]}
46. Ke3 {[%clk 0:01:02.6]} 46... d1=Q {[%clk 0:00:23.7]} 47. a5 {[%clk
0:01:01.9]} 47... Qe2+ {[%clk 0:00:22.7]} 48. Kf4 {[%clk 0:01:01.3]} 48... Qe4+
{[%clk 0:00:21.5]} 49. Kg3 {[%clk 0:01:00.6]} 49... Qg4+ {[%clk 0:00:20.4]} 50.
Kf2 {[%clk 0:01:00]} 50... Bc5+ {[%clk 0:00:19.6]} 51. Ke1 {[%clk 0:00:58.8]}
51... Qg2 {[%clk 0:00:17.4]} 52. axb6 {[%clk 0:00:56.1]} 52... Qe2# {[%clk
0:00:16.6]} 0-1

[Event "Live Chess"]
[Site "Chess.com"]
[Date "2023.05.21"]
[Round "-"]
[White "manthanit"]
[Black "Biranidun"]
[Result "0-1"]
[WhiteElo "1075"]
[BlackElo "2520"]
[TimeControl "300"]
[EndTime "20:26:27 PDT"]
[Termination "Biranidun won by resignation"]

1. e4 {[%clk 0:04:58.9]} 1... c5 {[%clk 0:04:59.2]} 2. d4 {[%clk 0:04:55.7]}
2... cxd4 {[%clk 0:04:58.4]} 3. Qxd4 {[%clk 0:04:55.4]} 3... Nc6 {[%clk
0:04:57.6]} 4. Qd1 {[%clk 0:04:55.1]} 4... Nf6 {[%clk 0:04:57.1]} 5. Nc3 {[%clk
0:04:53.9]} 5... g6 {[%clk 0:04:56.7]} 6. Nf3 {[%clk 0:04:53.3]} 6... Bg7 {[%clk
0:04:56.3]} 7. Bd3 {[%clk 0:04:45.4]} 7... O-O {[%clk 0:04:54.9]} 8. O-O {[%clk
0:04:44.1]} 8... d6 {[%clk 0:04:54.6]} 9. h3 {[%clk 0:04:43.4]} 9... Be6 {[%clk
0:04:51.4]} 10. Bg5 {[%clk 0:04:34.4]} 10... h6 {[%clk 0:04:50]} 11. Bh4 {[%clk
0:04:33.4]} 11... Nh5 {[%clk 0:04:49]} 12. Re1 {[%clk 0:04:21.9]} 12... Rc8
{[%clk 0:04:47.6]} 13. Bb5 {[%clk 0:03:34.2]} 13... Bxc3 {[%clk 0:04:45.9]} 14.
bxc3 {[%clk 0:03:32.4]} 14... Re8 {[%clk 0:04:45.1]} 15. Nd4 {[%clk 0:03:13.8]}
15... Bd7 {[%clk 0:04:43.3]} 16. e5 {[%clk 0:03:05.5]} 16... Nxe5 {[%clk
0:04:40.9]} 17. Bxd7 {[%clk 0:03:01.2]} 17... Qxd7 {[%clk 0:04:40.8]} 18. f4
{[%clk 0:02:57.4]} 18... Nxf4 {[%clk 0:04:39.8]} 19. Qd2 {[%clk 0:02:32.7]}
19... Nxh3+ {[%clk 0:04:34]} 20. gxh3 {[%clk 0:02:23.5]} 20... Qxh3 {[%clk
0:04:33.9]} 21. Qh2 {[%clk 0:02:20.3]} 21... Qxc3 {[%clk 0:04:27.8]} 22. Nb5
{[%clk 0:01:29.4]} 22... Nf3+ {[%clk 0:04:25.7]} 0-1